[Event "*** Titled Tuesday Blitz"]
[Site "Chess.com"]
[Date "2020.05.26"]
[Round "2"]
[White "verdest"]
[Black "Chuchofrio1"]
[Result "1-0"]
[WhiteElo "2525"]
[BlackElo "2281"]
[TimeControl "180+1"]
[EndTime "10:16:15 PDT"]
[Termination "verdest won by resignation"]

1. d4 {[%clk 0:03:00.9]} 1... f5 {[%clk 0:02:57.4]} 2. Nf3 {[%clk 0:02:59.7]}
2... Nf6 {[%clk 0:02:57.6]} 3. g3 {[%clk 0:02:59.7]} 3... d6 {[%clk 0:02:58]} 4.
Bg2 {[%clk 0:02:59.8]} 4... g6 {[%clk 0:02:56.8]} 5. O-O {[%clk 0:03:00.2]} 5...
Bg7 {[%clk 0:02:57]} 6. Nbd2 {[%clk 0:03:00.7]} 6... O-O {[%clk 0:02:56.9]} 7.
Re1 {[%clk 0:03:01.1]} 7... Ne4 {[%clk 0:02:53.6]} 8. c3 {[%clk 0:02:52.7]} 8...
Nc6 {[%clk 0:02:48.6]} 9. Qb3+ {[%clk 0:02:47.1]} 9... Kh8 {[%clk 0:02:47.3]}
10. Nxe4 {[%clk 0:02:28]} 10... fxe4 {[%clk 0:02:48.2]} 11. Ng5 {[%clk 0:02:28]}
11... d5 {[%clk 0:02:41.1]} 12. f3 {[%clk 0:02:27.8]} 12... exf3 {[%clk
0:02:39.6]} 13. exf3 {[%clk 0:02:15.4]} 13... e5 {[%clk 0:02:38.1]} 14. dxe5
{[%clk 0:02:10.2]} 14... Nxe5 {[%clk 0:02:39]} 15. f4 {[%clk 0:02:00.5]} 15...
Nc4 {[%clk 0:02:23.9]} 16. Qd1 {[%clk 0:01:42.8]} 16... c6 {[%clk 0:02:22.2]}
17. b3 {[%clk 0:01:40.3]} 17... Nd6 {[%clk 0:02:20.4]} 18. Bb2 {[%clk
0:01:39.7]} 18... Bf5 {[%clk 0:02:19.6]} 19. Qd2 {[%clk 0:01:32]} 19... Qd7
{[%clk 0:02:16.1]} 20. c4 {[%clk 0:01:26]} 20... dxc4 {[%clk 0:02:13.9]} 21.
Bxg7+ {[%clk 0:01:25.5]} 21... Kxg7 {[%clk 0:02:14.8]} 22. Qc3+ {[%clk 0:01:23]}
22... Kh6 {[%clk 0:02:13.3]} 23. bxc4 {[%clk 0:01:21.1]} 23... Rae8 {[%clk
0:02:11]} 24. Red1 {[%clk 0:01:17.9]} 24... Qc7 {[%clk 0:02:10.3]} 25. Qd4
{[%clk 0:01:10.4]} 25... Nf7 {[%clk 0:02:05]} 26. Nf3 {[%clk 0:01:06.6]} 26...
Rd8 {[%clk 0:01:59.7]} 27. Qf6 {[%clk 0:01:02.9]} 27... Nd6 {[%clk 0:01:42.4]}
28. Qg5+ {[%clk 0:00:49]} 28... Kg7 {[%clk 0:01:40.8]} 29. Ne5 {[%clk
0:00:48.7]} 29... Ne4 {[%clk 0:01:37.5]} 30. Bxe4 {[%clk 0:00:38.6]} 30... Bxe4
{[%clk 0:01:38.4]} 31. c5 {[%clk 0:00:35.5]} 31... Rxd1+ {[%clk 0:01:29.2]} 32.
Rxd1 {[%clk 0:00:34.9]} 32... Rd8 {[%clk 0:01:29.8]} 33. Rxd8 {[%clk 0:00:32.7]}
33... h6 {[%clk 0:01:28.6]} 34. Qh4 {[%clk 0:00:28.4]} 34... g5 {[%clk
0:01:25.5]} 35. fxg5 {[%clk 0:00:26.8]} 35... Qxd8 {[%clk 0:01:25.4]} 36. gxh6+
{[%clk 0:00:26]} 1-0

[Event "*** Titled Tuesday Blitz"]
[Site "Chess.com"]
[Date "2020.05.26"]
[Round "2"]
[White "EvgenyRomanov"]
[Black "peixe64"]
[Result "1-0"]
[WhiteElo "2668"]
[BlackElo "2301"]
[TimeControl "180+1"]
[EndTime "10:16:16 PDT"]
[Termination "EvgenyRomanov won on time"]

1. d4 {[%clk 0:03:00.9]} 1... Nf6 {[%clk 0:03:00.1]} 2. Bg5 {[%clk 0:02:53.5]}
2... Ne4 {[%clk 0:02:59]} 3. Bf4 {[%clk 0:02:52.5]} 3... d5 {[%clk 0:02:59.1]}
4. e3 {[%clk 0:02:51.4]} 4... e6 {[%clk 0:02:52.8]} 5. Bd3 {[%clk 0:02:50.5]}
5... Nf6 {[%clk 0:02:52.3]} 6. Nf3 {[%clk 0:02:49.4]} 6... Bd6 {[%clk 0:02:52]}
7. O-O {[%clk 0:02:48]} 7... O-O {[%clk 0:02:50.4]} 8. Nbd2 {[%clk 0:02:45.9]}
8... c5 {[%clk 0:02:49.6]} 9. dxc5 {[%clk 0:02:45.5]} 9... Bxc5 {[%clk
0:02:40.7]} 10. Qe2 {[%clk 0:02:44.4]} 10... Nc6 {[%clk 0:02:36.8]} 11. c3
{[%clk 0:02:40.6]} 11... Re8 {[%clk 0:02:33.1]} 12. e4 {[%clk 0:02:37.4]} 12...
e5 {[%clk 0:02:18.1]} 13. Bg5 {[%clk 0:02:36.7]} 13... d4 {[%clk 0:02:18.2]} 14.
Nb3 {[%clk 0:02:27.8]} 14... Bb6 {[%clk 0:02:13.7]} 15. cxd4 {[%clk 0:02:27.3]}
15... exd4 {[%clk 0:02:01.8]} 16. h3 {[%clk 0:02:21.5]} 16... h6 {[%clk
0:02:00.2]} 17. Bh4 {[%clk 0:02:20.5]} 17... Bf5 {[%clk 0:01:36.1]} 18. Nfd2
{[%clk 0:01:51.1]} 18... g5 {[%clk 0:00:59]} 19. Bg3 {[%clk 0:01:49.5]} 19...
Nb4 {[%clk 0:00:47.6]} 20. Rfe1 {[%clk 0:01:39.3]} 20... Bg6 {[%clk 0:00:30.6]}
21. a3 {[%clk 0:01:25.4]} 21... Nc6 {[%clk 0:00:26.1]} 22. e5 {[%clk 0:01:13.6]}
1-0

[Event "*** Titled Tuesday Blitz"]
[Site "Chess.com"]
[Date "2020.05.26"]
[Round "2"]
[White "kuban1991"]
[Black "profofchess"]
[Result "1-0"]
[WhiteElo "2725"]
[BlackElo "2480"]
[TimeControl "180+1"]
[EndTime "10:16:18 PDT"]
[Termination "kuban1991 won by resignation"]

1. Nf3 {[%clk 0:03:00.9]} 1... Nc6 {[%clk 0:02:59.5]} 2. d4 {[%clk 0:02:59.8]}
2... d5 {[%clk 0:02:59.4]} 3. g3 {[%clk 0:02:59.6]} 3... Bg4 {[%clk 0:02:57.8]}
4. Bg2 {[%clk 0:02:59.8]} 4... Nf6 {[%clk 0:02:57.3]} 5. O-O {[%clk 0:03:00.1]}
5... e6 {[%clk 0:02:57.3]} 6. c3 {[%clk 0:02:55.3]} 6... Bd6 {[%clk 0:02:55.8]}
7. Na3 {[%clk 0:02:47.9]} 7... a6 {[%clk 0:02:54.9]} 8. Nc2 {[%clk 0:02:47.7]}
8... O-O {[%clk 0:02:52.3]} 9. h3 {[%clk 0:02:45.8]} 9... Bh5 {[%clk 0:02:36.4]}
10. Nce1 {[%clk 0:02:45.3]} 10... e5 {[%clk 0:02:26.6]} 11. dxe5 {[%clk
0:02:43.8]} 11... Nxe5 {[%clk 0:02:27.5]} 12. Nd3 {[%clk 0:02:40.5]} 12... Nxf3+
{[%clk 0:02:24.5]} 13. exf3 {[%clk 0:02:41.4]} 13... Re8 {[%clk 0:01:56.4]} 14.
Nf4 {[%clk 0:02:37.2]} 14... c6 {[%clk 0:01:46.5]} 15. Nxh5 {[%clk 0:02:28.5]}
15... Nxh5 {[%clk 0:01:47.4]} 16. f4 {[%clk 0:02:27.8]} 16... Nf6 {[%clk
0:01:47.4]} 17. Be3 {[%clk 0:02:24.3]} 17... Ne4 {[%clk 0:01:45.3]} 18. Re1
{[%clk 0:02:23.9]} 18... Qd7 {[%clk 0:01:25.2]} 19. Qd3 {[%clk 0:02:20]} 19...
Re7 {[%clk 0:01:13.5]} 20. c4 {[%clk 0:02:15.6]} 20... Nc5 {[%clk 0:00:58.5]}
21. Qc2 {[%clk 0:01:57.3]} 21... dxc4 {[%clk 0:00:32.9]} 22. Qxc4 {[%clk
0:01:58.2]} 22... Qe6 {[%clk 0:00:24.7]} 23. Qc2 {[%clk 0:01:47.5]} 23... Nd7
{[%clk 0:00:20.5]} 24. Kh2 {[%clk 0:01:35.7]} 24... Rae8 {[%clk 0:00:20.1]} 25.
Bd2 {[%clk 0:01:31.7]} 25... Qf6 {[%clk 0:00:19.3]} 26. Bc3 {[%clk 0:01:30.2]}
26... Qg6 {[%clk 0:00:18.5]} 27. Rxe7 {[%clk 0:01:27]} 27... Rxe7 {[%clk
0:00:18.2]} 28. Qd2 {[%clk 0:01:16.8]} 28... Nc5 {[%clk 0:00:15.6]} 29. Rd1
{[%clk 0:01:15.7]} 29... Bc7 {[%clk 0:00:14.9]} 30. Qd8+ {[%clk 0:01:13.1]} 1-0

[Event "*** Titled Tuesday Blitz"]
[Site "Chess.com"]
[Date "2020.05.26"]
[Round "2"]
[White "SGchess01"]
[Black "Baronessa08"]
[Result "1-0"]
[WhiteElo "2766"]
[BlackElo "2405"]
[TimeControl "180+1"]
[EndTime "10:16:18 PDT"]
[Termination "SGchess01 won by resignation"]

1. g3 {[%clk 0:03:00.5]} 1... c5 {[%clk 0:02:59.2]} 2. Bg2 {[%clk 0:03:00.4]}
2... Nc6 {[%clk 0:02:59.6]} 3. Nf3 {[%clk 0:03:00.1]} 3... g6 {[%clk 0:02:59.9]}
4. O-O {[%clk 0:03:00.6]} 4... Bg7 {[%clk 0:03:00.4]} 5. e4 {[%clk 0:03:01.1]}
5... d6 {[%clk 0:02:58.7]} 6. c3 {[%clk 0:03:00.9]} 6... e5 {[%clk 0:02:55.9]}
7. Na3 {[%clk 0:02:58.8]} 7... Nge7 {[%clk 0:02:54.6]} 8. Nc2 {[%clk 0:02:58.5]}
8... O-O {[%clk 0:02:53.5]} 9. Re1 {[%clk 0:02:54]} 9... Re8 {[%clk 0:02:48.5]}
10. h3 {[%clk 0:02:49.6]} 10... Bd7 {[%clk 0:02:37.9]} 11. d4 {[%clk 0:02:47.8]}
11... exd4 {[%clk 0:02:37.6]} 12. cxd4 {[%clk 0:02:48.1]} 12... Rc8 {[%clk
0:02:30.3]} 13. d5 {[%clk 0:02:40.9]} 13... Ne5 {[%clk 0:02:27.3]} 14. Nxe5
{[%clk 0:02:38.9]} 14... Bxe5 {[%clk 0:02:28.2]} 15. Rb1 {[%clk 0:02:32.1]}
15... Qa5 {[%clk 0:02:12.9]} 16. a3 {[%clk 0:02:16.5]} 16... b5 {[%clk 0:02:11]}
17. Bd2 {[%clk 0:02:14.2]} 17... Qb6 {[%clk 0:02:10.5]} 18. Kh2 {[%clk
0:02:12.7]} 18... Bg7 {[%clk 0:02:09.5]} 19. Bc3 {[%clk 0:02:07.6]} 19... a5
{[%clk 0:01:59.8]} 20. Bxg7 {[%clk 0:02:06.1]} 20... Kxg7 {[%clk 0:02:00.7]} 21.
f4 {[%clk 0:02:03.7]} 21... b4 {[%clk 0:01:58.9]} 22. e5 {[%clk 0:02:03.2]}
22... Nf5 {[%clk 0:01:57.1]} 23. Qd2 {[%clk 0:01:53.9]} 23... b3 {[%clk
0:01:54.8]} 24. Ne3 {[%clk 0:01:53.7]} 24... Nxe3 {[%clk 0:01:33.5]} 25. Rxe3
{[%clk 0:01:54.6]} 25... c4 {[%clk 0:01:27.4]} 26. Rbe1 {[%clk 0:01:50.2]} 26...
Bf5 {[%clk 0:01:23.9]} 27. e6 {[%clk 0:01:36.8]} 27... fxe6 {[%clk 0:00:56.5]}
28. dxe6 {[%clk 0:01:31.8]} 28... Qc5 {[%clk 0:00:56.8]} 29. g4 {[%clk
0:01:29.9]} 29... Bd3 {[%clk 0:00:55.7]} 30. Qc3+ {[%clk 0:01:29.5]} 30... Kg8
{[%clk 0:00:54.4]} 31. e7 {[%clk 0:01:27.1]} 31... Rc7 {[%clk 0:00:43.7]} 32.
Qf6 {[%clk 0:01:25.1]} 32... d5 {[%clk 0:00:23.6]} 33. Qe6+ {[%clk 0:01:24.4]}
33... Kg7 {[%clk 0:00:21]} 34. Qe5+ {[%clk 0:01:24.9]} 1-0

[Event "*** Titled Tuesday Blitz"]
[Site "Chess.com"]
[Date "2020.05.26"]
[Round "2"]
[White "WPWPWP-2015"]
[Black "DucksParadise"]
[Result "1-0"]
[WhiteElo "2375"]
[BlackElo "2048"]
[TimeControl "180+1"]
[EndTime "10:16:19 PDT"]
[Termination "WPWPWP-2015 won by resignation"]

1. e4 {[%clk 0:03:00.9]} 1... c5 {[%clk 0:02:56.2]} 2. Nf3 {[%clk 0:03:00.3]}
2... Nc6 {[%clk 0:02:55.9]} 3. d4 {[%clk 0:03:00.3]} 3... cxd4 {[%clk
0:02:55.9]} 4. Nxd4 {[%clk 0:03:01.1]} 4... Nf6 {[%clk 0:02:56.3]} 5. Nc3 {[%clk
0:02:59.1]} 5... e5 {[%clk 0:02:56.2]} 6. Ndb5 {[%clk 0:02:59.6]} 6... d6 {[%clk
0:02:56.1]} 7. Bg5 {[%clk 0:02:58.6]} 7... a6 {[%clk 0:02:54.6]} 8. Na3 {[%clk
0:02:58.7]} 8... b5 {[%clk 0:02:54.1]} 9. Nd5 {[%clk 0:02:58.6]} 9... Be7 {[%clk
0:02:53.8]} 10. Bxf6 {[%clk 0:02:59]} 10... Bxf6 {[%clk 0:02:54.4]} 11. c3
{[%clk 0:02:58.7]} 11... O-O {[%clk 0:02:52.6]} 12. Nc2 {[%clk 0:02:58.4]} 12...
Rb8 {[%clk 0:02:53.1]} 13. h4 {[%clk 0:02:56.2]} 13... g6 {[%clk 0:02:39]} 14.
h5 {[%clk 0:02:55.1]} 14... Bg5 {[%clk 0:02:36.6]} 15. hxg6 {[%clk 0:02:53.4]}
15... hxg6 {[%clk 0:02:37.5]} 16. Nce3 {[%clk 0:02:41.9]} 16... Be6 {[%clk
0:02:36.3]} 17. Bd3 {[%clk 0:02:39.4]} 17... Ne7 {[%clk 0:02:23.7]} 18. Nb4
{[%clk 0:02:16.1]} 18... Bxe3 {[%clk 0:02:03.5]} 19. fxe3 {[%clk 0:02:15.4]}
19... Qb6 {[%clk 0:02:00.8]} 20. Qf3 {[%clk 0:02:10.1]} 20... Kg7 {[%clk
0:01:59.3]} 21. O-O-O {[%clk 0:02:03.8]} 21... a5 {[%clk 0:01:51.8]} 22. Nd5
{[%clk 0:02:03]} 22... Bxd5 {[%clk 0:01:47.6]} 23. exd5 {[%clk 0:02:03.9]} 23...
f5 {[%clk 0:01:18.6]} 24. e4 {[%clk 0:01:55.3]} 24... fxe4 {[%clk 0:01:06]} 25.
Qxe4 {[%clk 0:01:30.9]} 25... Rf4 {[%clk 0:00:57.5]} 26. Qe2 {[%clk 0:01:30.4]}
26... b4 {[%clk 0:00:30.8]} 27. c4 {[%clk 0:01:22.1]} 27... Rbf8 {[%clk
0:00:20.7]} 28. Qd2 {[%clk 0:01:13.6]} 28... Rf2 {[%clk 0:00:16.1]} 29. Qh6+
{[%clk 0:01:12.1]} 29... Kf6 {[%clk 0:00:15.2]} 1-0

[Event "*** Titled Tuesday Blitz"]
[Site "Chess.com"]
[Date "2020.05.26"]
[Round "2"]
[White "kleinebeer98"]
[Black "NormWeinstein"]
[Result "1-0"]
[WhiteElo "2665"]
[BlackElo "2365"]
[TimeControl "180+1"]
[EndTime "10:16:20 PDT"]
[Termination "kleinebeer98 won by resignation"]

1. e4 {[%clk 0:02:48.9]} 1... c5 {[%clk 0:02:59]} 2. Nf3 {[%clk 0:02:46.6]} 2...
d6 {[%clk 0:02:58.7]} 3. d4 {[%clk 0:02:47.1]} 3... Nf6 {[%clk 0:02:58.7]} 4.
Nc3 {[%clk 0:02:47.2]} 4... cxd4 {[%clk 0:02:59.1]} 5. Nxd4 {[%clk 0:02:48.1]}
5... Nc6 {[%clk 0:02:59.2]} 6. Nd5 {[%clk 0:02:47.6]} 6... e6 {[%clk 0:02:54.7]}
7. Nxf6+ {[%clk 0:02:45.2]} 7... gxf6 {[%clk 0:02:54.6]} 8. Be3 {[%clk
0:02:45.8]} 8... a6 {[%clk 0:02:54.1]} 9. Be2 {[%clk 0:02:46]} 9... Bd7 {[%clk
0:02:48.8]} 10. O-O {[%clk 0:02:45.1]} 10... Qc7 {[%clk 0:02:45.1]} 11. f4
{[%clk 0:02:39.9]} 11... Be7 {[%clk 0:02:44.3]} 12. Bh5 {[%clk 0:02:36.4]} 12...
Nxd4 {[%clk 0:02:42.8]} 13. Bxd4 {[%clk 0:02:35.7]} 13... Bc6 {[%clk 0:02:39.2]}
14. Qg4 {[%clk 0:02:30.1]} 14... Bxe4 {[%clk 0:02:22.1]} 15. Qxe6 {[%clk
0:02:15.2]} 15... Bg6 {[%clk 0:02:20.8]} 16. Qh3 {[%clk 0:02:12.8]} 16... Rg8
{[%clk 0:01:29]} 17. Rae1 {[%clk 0:01:54.7]} 17... Kf8 {[%clk 0:01:18.5]} 18.
Bxg6 {[%clk 0:01:45.6]} 18... hxg6 {[%clk 0:01:09]} 19. Qh6+ {[%clk 0:01:44.9]}
19... Rg7 {[%clk 0:01:08.5]} 20. f5 {[%clk 0:01:28]} 20... Kg8 {[%clk
0:00:59.8]} 21. Rf3 {[%clk 0:01:14.4]} 21... Rh7 {[%clk 0:00:49.7]} 22. Qe3
{[%clk 0:01:14.3]} 22... Bf8 {[%clk 0:00:33]} 23. fxg6 {[%clk 0:01:10.1]} 23...
fxg6 {[%clk 0:00:33]} 24. Rxf6 {[%clk 0:01:10.4]} 24... Bg7 {[%clk 0:00:20.6]}
25. Rxg6 {[%clk 0:01:09.2]} 25... Qxc2 {[%clk 0:00:18.6]} 26. Qe6+ {[%clk
0:01:05.5]} 26... Kh8 {[%clk 0:00:18]} 27. Qe8+ {[%clk 0:01:05.9]} 1-0

[Event "*** Titled Tuesday Blitz"]
[Site "Chess.com"]
[Date "2020.05.26"]
[Round "2"]
[White "abhidabhi"]
[Black "RitvarsReimanis"]
[Result "1-0"]
[WhiteElo "2739"]
[BlackElo "2493"]
[TimeControl "180+1"]
[EndTime "10:16:28 PDT"]
[Termination "abhidabhi won on time"]

1. Nf3 {[%clk 0:03:00.9]} 1... Nf6 {[%clk 0:02:59.1]} 2. g3 {[%clk 0:03:00.4]}
2... e6 {[%clk 0:02:58.5]} 3. Bg2 {[%clk 0:02:59.7]} 3... d5 {[%clk 0:02:58.7]}
4. O-O {[%clk 0:02:59.8]} 4... Be7 {[%clk 0:02:58.7]} 5. d3 {[%clk 0:02:58.4]}
5... O-O {[%clk 0:02:59.6]} 6. Nbd2 {[%clk 0:02:58.6]} 6... Nc6 {[%clk 0:02:51]}
7. e4 {[%clk 0:02:58.2]} 7... e5 {[%clk 0:02:51.1]} 8. exd5 {[%clk 0:02:53.3]}
8... Nxd5 {[%clk 0:02:51.3]} 9. a3 {[%clk 0:02:51.4]} 9... Be6 {[%clk
0:02:28.7]} 10. Re1 {[%clk 0:02:51]} 10... Bd6 {[%clk 0:02:23.6]} 11. Nc4 {[%clk
0:02:50.1]} 11... f6 {[%clk 0:02:23.6]} 12. d4 {[%clk 0:02:46.2]} 12... Bg4
{[%clk 0:02:00.1]} 13. dxe5 {[%clk 0:02:22.1]} 13... Bxe5 {[%clk 0:01:53.2]} 14.
h3 {[%clk 0:02:21.9]} 14... Bxf3 {[%clk 0:01:44.2]} 15. Qxf3 {[%clk 0:02:16.4]}
15... Nb6 {[%clk 0:01:38.9]} 16. Nxe5 {[%clk 0:02:09.4]} 16... fxe5 {[%clk
0:01:35.5]} 17. Qb3+ {[%clk 0:02:07.4]} 17... Kh8 {[%clk 0:01:34.9]} 18. c3
{[%clk 0:02:07.6]} 18... Qf6 {[%clk 0:01:05.9]} 19. Be3 {[%clk 0:02:05]} 19...
Rab8 {[%clk 0:01:06.2]} 20. Qb5 {[%clk 0:01:58.7]} 20... Rf7 {[%clk 0:00:48.5]}
21. Rad1 {[%clk 0:01:56.3]} 21... h6 {[%clk 0:00:41.5]} 22. Qe2 {[%clk
0:01:53.3]} 22... Ne7 {[%clk 0:00:34.1]} 23. Bc5 {[%clk 0:01:43.1]} 23... Nc6
{[%clk 0:00:11.6]} 24. Be4 {[%clk 0:01:27.5]} 24... g5 {[%clk 0:00:10.6]} 25.
Rd3 {[%clk 0:01:20.9]} 25... Qe6 {[%clk 0:00:07.3]} 26. Bxb6 {[%clk 0:01:18]}
26... axb6 {[%clk 0:00:06.3]} 27. Bd5 {[%clk 0:01:18.2]} 27... Qf5 {[%clk
0:00:06.6]} 28. Rf3 {[%clk 0:01:15.6]} 1-0

[Event "*** Titled Tuesday Blitz"]
[Site "Chess.com"]
[Date "2020.05.26"]
[Round "2"]
[White "The_Machine04"]
[Black "kagg1125"]
[Result "1-0"]
[WhiteElo "2294"]
[BlackElo "2591"]
[TimeControl "180+1"]
[EndTime "10:16:33 PDT"]
[Termination "The_Machine04 won by resignation"]

1. d4 {[%clk 0:03:00.9]} 1... Nf6 {[%clk 0:03:00.1]} 2. Bg5 {[%clk 0:03:00.5]}
2... c5 {[%clk 0:03:00]} 3. Bxf6 {[%clk 0:02:47.6]} 3... exf6 {[%clk 0:02:59.6]}
4. dxc5 {[%clk 0:02:46.6]} 4... Bxc5 {[%clk 0:02:58.7]} 5. e3 {[%clk 0:02:47.1]}
5... O-O {[%clk 0:02:58.6]} 6. Nf3 {[%clk 0:02:46.3]} 6... Nc6 {[%clk
0:02:58.9]} 7. Nbd2 {[%clk 0:02:44.6]} 7... d5 {[%clk 0:02:57.2]} 8. c3 {[%clk
0:02:44.5]} 8... Re8 {[%clk 0:02:56.4]} 9. Be2 {[%clk 0:02:44.2]} 9... Bb6
{[%clk 0:02:54.4]} 10. O-O {[%clk 0:02:43.4]} 10... Ne5 {[%clk 0:02:47.2]} 11.
Nb3 {[%clk 0:02:41]} 11... Bf5 {[%clk 0:02:41.5]} 12. Nbd4 {[%clk 0:02:39.6]}
12... Bg6 {[%clk 0:02:41.6]} 13. Qb3 {[%clk 0:02:32.7]} 13... Qd7 {[%clk
0:02:38.6]} 14. Rfd1 {[%clk 0:02:31.3]} 14... Red8 {[%clk 0:02:33.4]} 15. a4
{[%clk 0:02:28.9]} 15... Bc5 {[%clk 0:02:30.8]} 16. Rd2 {[%clk 0:02:13.5]} 16...
h5 {[%clk 0:02:20.3]} 17. Nh4 {[%clk 0:01:56.7]} 17... Be4 {[%clk 0:02:07.3]}
18. Bxh5 {[%clk 0:01:48.6]} 18... Nc4 {[%clk 0:02:05.8]} 19. Rdd1 {[%clk
0:01:46.7]} 19... g6 {[%clk 0:01:48.6]} 20. Bf3 {[%clk 0:01:42.2]} 20... Kg7
{[%clk 0:01:48.7]} 21. Bxe4 {[%clk 0:01:40.2]} 21... Qg4 {[%clk 0:01:37.3]} 22.
Bxd5 {[%clk 0:01:28.3]} 22... Rxd5 {[%clk 0:01:31.6]} 23. Qxc4 {[%clk
0:01:25.8]} 23... Rh5 {[%clk 0:01:31.1]} 24. Nhf3 {[%clk 0:01:23.3]} 24... Rah8
{[%clk 0:01:28.3]} 25. b3 {[%clk 0:01:09.2]} 25... Kg8 {[%clk 0:01:09.6]} 26.
Ne2 {[%clk 0:00:59]} 1-0

[Event "*** Titled Tuesday Blitz"]
[Site "Chess.com"]
[Date "2020.05.26"]
[Round "2"]
[White "djano"]
[Black "AsselLesbekova"]
[Result "0-1"]
[WhiteElo "2443"]
[BlackElo "2268"]
[TimeControl "180+1"]
[EndTime "10:16:34 PDT"]
[Termination "AsselLesbekova won by resignation"]

1. d4 {[%clk 0:03:00.9]} 1... f5 {[%clk 0:02:59.2]} 2. Nc3 {[%clk 0:02:57]} 2...
Nf6 {[%clk 0:02:58.1]} 3. Bg5 {[%clk 0:02:56.3]} 3... Ne4 {[%clk 0:02:57.7]} 4.
Nxe4 {[%clk 0:02:55.6]} 4... fxe4 {[%clk 0:02:58.6]} 5. c3 {[%clk 0:02:50.8]}
5... g6 {[%clk 0:02:57]} 6. h4 {[%clk 0:02:50.4]} 6... Bg7 {[%clk 0:02:53.7]} 7.
Qd2 {[%clk 0:02:50.8]} 7... h6 {[%clk 0:02:51]} 8. Bf4 {[%clk 0:02:50.4]} 8...
d5 {[%clk 0:02:50.9]} 9. f3 {[%clk 0:02:49.1]} 9... Bf5 {[%clk 0:02:45.6]} 10.
g4 {[%clk 0:02:48.7]} 10... Bd7 {[%clk 0:02:39.4]} 11. fxe4 {[%clk 0:02:47.2]}
11... Bxg4 {[%clk 0:02:38.3]} 12. Bg2 {[%clk 0:02:42.9]} 12... c6 {[%clk
0:02:31.1]} 13. exd5 {[%clk 0:02:33.5]} 13... cxd5 {[%clk 0:02:32]} 14. Nf3
{[%clk 0:02:33.3]} 14... Nc6 {[%clk 0:02:28.1]} 15. O-O-O {[%clk 0:02:32.8]}
15... Bf5 {[%clk 0:02:21.8]} 16. Bh3 {[%clk 0:02:29.2]} 16... Be4 {[%clk
0:02:13.2]} 17. Rhg1 {[%clk 0:02:10.8]} 17... Qa5 {[%clk 0:02:10.6]} 18. a3
{[%clk 0:02:08.5]} 18... Qb5 {[%clk 0:02:07.2]} 19. Ne5 {[%clk 0:02:01]} 19...
Na5 {[%clk 0:01:58]} 20. b4 {[%clk 0:00:31]} 20... Nb3+ {[%clk 0:01:56.5]} 21.
Kb2 {[%clk 0:00:31.4]} 21... Nxd2 {[%clk 0:01:54]} 22. Bd7+ {[%clk 0:00:31.4]}
22... Qxd7 {[%clk 0:01:54.2]} 23. Nxd7 {[%clk 0:00:32.3]} 23... Kxd7 {[%clk
0:01:55.1]} 24. Rxd2 {[%clk 0:00:32]} 24... a5 {[%clk 0:01:49.8]} 25. e3 {[%clk
0:00:31.8]} 25... axb4 {[%clk 0:01:49]} 26. axb4 {[%clk 0:00:31.6]} 26... Ra4
{[%clk 0:01:43.7]} 27. Ra1 {[%clk 0:00:31.3]} 27... Rha8 {[%clk 0:01:38.7]} 28.
Rxa4 {[%clk 0:00:30.8]} 28... Rxa4 {[%clk 0:01:39.6]} 29. Rf2 {[%clk 0:00:31.3]}
29... Bf5 {[%clk 0:01:28.7]} 30. Rf1 {[%clk 0:00:31.2]} 30... b5 {[%clk
0:01:26]} 31. Rg1 {[%clk 0:00:30.6]} 31... Ra8 {[%clk 0:01:18.6]} 32. Rg3 {[%clk
0:00:30.4]} 32... e5 {[%clk 0:01:15.4]} 33. dxe5 {[%clk 0:00:29.6]} 33... Ke6
{[%clk 0:01:12.1]} 34. Rg1 {[%clk 0:00:28.4]} 34... Bxe5 {[%clk 0:01:11.4]} 35.
Bg5 {[%clk 0:00:28.6]} 35... hxg5 {[%clk 0:01:10.9]} 0-1

[Event "*** Titled Tuesday Blitz"]
[Site "Chess.com"]
[Date "2020.05.26"]
[Round "2"]
[White "Irochka83"]
[Black "andy_rekt"]
[Result "1-0"]
[WhiteElo "2409"]
[BlackElo "2147"]
[TimeControl "180+1"]
[EndTime "10:16:34 PDT"]
[Termination "Irochka83 won by resignation"]

1. d4 {[%clk 0:03:00.9]} 1... e6 {[%clk 0:02:59.7]} 2. c4 {[%clk 0:03:00.6]}
2... Nf6 {[%clk 0:02:59.8]} 3. Nc3 {[%clk 0:03:00.2]} 3... Bb4 {[%clk
0:02:57.8]} 4. Qc2 {[%clk 0:03:00.4]} 4... O-O {[%clk 0:02:53.8]} 5. a3 {[%clk
0:03:00.2]} 5... Bxc3+ {[%clk 0:02:52.6]} 6. Qxc3 {[%clk 0:03:01.1]} 6... d5
{[%clk 0:02:52.1]} 7. Nf3 {[%clk 0:02:59.6]} 7... dxc4 {[%clk 0:02:48.8]} 8.
Qxc4 {[%clk 0:03:00.5]} 8... b6 {[%clk 0:02:49.4]} 9. Bg5 {[%clk 0:02:59.2]}
9... Ba6 {[%clk 0:02:45.2]} 10. Qa4 {[%clk 0:02:59.8]} 10... h6 {[%clk
0:02:37.6]} 11. Bh4 {[%clk 0:02:58.6]} 11... Qd7 {[%clk 0:02:25.6]} 12. Qc2
{[%clk 0:02:49.2]} 12... Nd5 {[%clk 0:02:12.8]} 13. e4 {[%clk 0:02:26.2]} 13...
Bxf1 {[%clk 0:02:09.8]} 14. Kxf1 {[%clk 0:02:24.7]} 14... Nf4 {[%clk 0:02:08.7]}
15. Bg3 {[%clk 0:02:20.8]} 15... Ng6 {[%clk 0:01:58.9]} 16. Rc1 {[%clk
0:01:57.7]} 16... c5 {[%clk 0:01:49.9]} 17. dxc5 {[%clk 0:01:52.4]} 17... Rc8
{[%clk 0:01:45.4]} 18. Ke2 {[%clk 0:01:33.1]} 18... Rxc5 {[%clk 0:01:43.3]} 19.
Qd3 {[%clk 0:01:32.2]} 19... Rxc1 {[%clk 0:00:45.7]} 20. Rxc1 {[%clk 0:01:27.8]}
20... Qxd3+ {[%clk 0:00:43.2]} 21. Kxd3 {[%clk 0:01:28.2]} 21... Nd7 {[%clk
0:00:43.7]} 22. b4 {[%clk 0:01:16.2]} 22... Rd8 {[%clk 0:00:41.1]} 23. Ke3
{[%clk 0:01:10]} 23... Nf6 {[%clk 0:00:41]} 24. Rc7 {[%clk 0:01:01.6]} 24... a5
{[%clk 0:00:37.5]} 25. bxa5 {[%clk 0:00:53.6]} 25... bxa5 {[%clk 0:00:36.8]} 26.
Ra7 {[%clk 0:00:54.1]} 26... Ng4+ {[%clk 0:00:32.6]} 27. Ke2 {[%clk 0:00:53.4]}
27... Rb8 {[%clk 0:00:31.3]} 28. Bxb8 {[%clk 0:00:36.9]} 1-0